[Event "4th Batumi Cup 2018"]
[Site "Batumi"]
[Date "2018.07.08"]
[Round "7"]
[White "Gvetadze, Sofio"]
[Black "Khalaji, Hanieh"]
[Result "1/2-1/2"]
[ECO "B14"]
[WhiteElo "2316"]
[BlackElo "2146"]
[Annotator "NA"]
[PlyCount "81"]
[EventDate "2018.07.03"]
[EventType "swiss"]
[EventCountry "GEO"]
[SourceTitle "playchess.com"]
[Source "ChessBase"]
[SourceQuality "1"]
[TimeControl "40/5400+30:1800+30"]

1. e4 {[%emt 0:00:00]} c6 {[%emt 0:00:00]} 2. d4 {[%emt 0:00:00]} d5 {[%emt 0:00:00]} 3. exd5 {[%emt 0:00:01]} cxd5 {[%emt 0:00:00]} 4. c4 {[%emt 0:00:04]} Nf6 {[%emt 0:01:13]} 5. Nc3 {[%emt 0:00:09]} g6 {[%emt 0:02:38]} 6. Qb3 {[%emt 0:00:27]} Bg7 {[%emt 0:00:29]} 7. cxd5 {[%emt 0:00:14]} O-O {[%emt 0:00:53]} 8. Nge2 {[%emt 0:00:12]} Na6 {[%emt 0:00:36]} 9. Nf4 {[%emt 0:00:38] B14: Caro-Kann: Panov-Botvinnik Attack with 5...e6 and 5...g6} (9. g3 b5 10. Bg2 b4 11. Na4 Bb7 12. Nf4 g5 13. Ne2 g4 14. Nf4 Qa5 15. Be3 Rad8 16. Nc5 Nxc5 17. dxc5 {1-0 (32) Kantans,T (2484)-Rodshtein,M (2699) Katowice 2017}) 9... Nc7 {[%emt 0:00:28]} 10. g3 {[%emt 0:00:51]} Rb8 {[%emt 0:06:25]} 11. Bg2 $146 {[%emt 0:03:00]} ({Predecessor:} 11. a4 b6 12. Bg2 Bb7 13. O-O g5 14. Nd3 Nfxd5 15. Bxg5 Bxd4 16. Rad1 Qd6 {1-0 (28) Webb,L (2210)-Lalic,S (2300) Dublin 1991}) 11... b5 {[%emt 0:01:41]} 12. O-O {[%emt 0:00:32]} Bb7 {[%emt 0:02:37]} 13. Re1 {[%emt 0:01:12]} Ba8 {[%emt 0:04:33]} 14. a3 {[%emt 0:01:05]} a5 {[%emt 0:03:04]} 15. Be3 {[%emt 0:43:57]} g5 {[%emt 0:09:19]} 16. Nd3 {[%emt 0:05:23]} h6 {[%emt 0:01:19]} 17. d6 {[%emt 0:03:59]} exd6 {[%emt 0:02:26]} 18. Bxa8 {[%emt 0:00:13]} a4 {[%emt 0:00:41]} 19. Qd1 {[%emt 0:00:42]} Nxa8 {[%emt 0:01:00]} (19... Rxa8 $11 {keeps the balance.} 20. Nb4 Qd7) 20. Qf3 {[%emt 0:02:02]} Qd7 {[%emt 0:03:02]} 21. Nb4 {[%emt 0:03:11]} Nb6 {[%emt 0:03:47]} 22. d5 {[%emt 0:01:30]} Ng4 {[%emt 0:04:22]} 23. Nc6 {[%emt 0:03:15]} Nc4 {[%emt 0:10:38]} 24. Bd4 {[%emt 0:05:33]} Bxd4 {[%emt 0:02:06]} 25. Nxd4 {[%emt 0:00:03]} Nce5 {[%emt 0:00:48]} 26. Qd1 {[%emt 0:04:51]} Qa7 {[%emt 0:06:20]} 27. Kg2 $1 {[%emt 0:01:40]} Rfc8 {[%emt 0:04:51]} 28. Re2 {[%emt 0:02:10]} Rc4 {[%emt 0:00:57]} 29. Ndxb5 {[%emt 0:02:31]} Qc5 {[%emt 0:01:28]} 30. h3 {[%emt 0:13:51]} Nf6 {[%emt 0:01:39]} 31. Rd2 {[%emt 0:00:30]} Rxb5 {[%emt 0:01:05]} 32. Nxb5 {[%emt 0:00:02]} Qxb5 {[%emt 0:00:59]} 33. Rc1 {[%emt 0:00:01]} Rxc1 {[%emt 0:09:39]} 34. Qxc1 {[%emt 0:00:02]} Ne4 {[%emt 0:01:04]} 35. Rd4 {[%emt 0:01:10]} Nxf2 {[%emt 0:05:44]} 36. Kxf2 {[%emt 0:00:51]} Nd3+ {[%emt 0:00:15]} 37. Rxd3 {[%emt 0:00:08]} Qxd3 {[%emt 0:00:05]} 38. Qc6 {[%emt 0:00:36]} Qd2+ $15 {[%emt 0:00:35]} 39. Kg1 {[%emt 0:01:03]} Qe1+ {[%emt 0:00:07]} 40. Kg2 {[%emt 0:00:00]} Qe2+ {[%emt 0:00:00]} 41. Kg1 {[%emt 0:00:14]} 1/2-1/2

[Event "4th Batumi Cup 2018"]
[Site "Batumi"]
[Date "2018.07.08"]
[Round "7"]
[White "Garayev, Kanan"]
[Black "Chkhaidze, Nikoloz"]
[Result "1-0"]
[ECO "D87"]
[WhiteElo "2300"]
[BlackElo "2337"]
[Annotator "NA"]
[PlyCount "77"]
[EventDate "2018.07.03"]
[EventType "swiss"]
[EventCountry "GEO"]
[SourceTitle "playchess.com"]
[Source "ChessBase"]
[SourceQuality "1"]
[TimeControl "40/5400+30:1800+30"]

1. d4 {[%emt 0:00:00]} Nf6 {[%emt 0:00:00]} 2. c4 {[%emt 0:00:01]} g6 {[%emt 0:00:00]} 3. Nc3 {[%emt 0:00:04]} d5 {[%emt 0:00:00]} 4. cxd5 {[%emt 0:00:05]} Nxd5 {[%emt 0:00:00]} 5. e4 {[%emt 0:00:05]} Nxc3 {[%emt 0:00:00]} 6. bxc3 {[%emt 0:00:04]} Bg7 {[%emt 0:00:00]} 7. Bc4 {[%emt 0:00:05]} c5 {[%emt 0:00:00]} 8. Ne2 {[%emt 0:00:07]} O-O {[%emt 0:00:10]} 9. Be3 {[%emt 0:00:09]} Nc6 {[%emt 0:00:08]} 10. Rc1 {[%emt 0:00:11]} Qc7 {[%emt 0:00:16]} 11. h4 {[%emt 0:01:27] D87: Exchange Grünfeld: Classical Line: Variations without ...cxd4} h5 {[%emt 0:00:43]} (11... Rd8 12. h5 b5 13. Bd5 e6 14. Bxc6 Qxc6 15. hxg6 fxg6 16. f3 a5 17. Kf2 Ba6 18. Qg1 b4 {0-1 (45) Fedoseev,V (2664)-Wei,Y (2724) Ningbo 2015}) 12. Qd2 {[%emt 0:07:14]} Rd8 {[%emt 0:01:56]} 13. Bh6 $146 {[%emt 0:16:01]} ({Predecessor:} 13. f3 Ne5 14. Bf4 Qb6 15. Bxe5 Bxe5 16. Qg5 cxd4 17. Qxe5 d3 18. Nd4 Qb2 19. O-O {1-0 (19) Ovchinnikov,V (2147)-Shvanov,G (1887) Samara 2014}) 13... Bf6 {[%emt 0:14:04]} 14. Bg5 {[%emt 0:11:21]} Bg7 {[%emt 0:02:12]} 15. O-O {[%emt 0:11:05]} Qa5 {[%emt 0:14:18]} 16. Qf4 {[%emt 0:06:51]} Rf8 {[%emt 0:00:34]} 17. e5 {[%emt 0:07:16]} Kh7 {[%emt 0:11:44]} 18. Qg3 {[%emt 0:02:23]} Bg4 {[%emt 0:01:44]} 19. f3 {[%emt 0:02:00]} Bf5 {[%emt 0:07:38]} 20. Qf2 {[%emt 0:04:07]} Rad8 {[%emt 0:00:19]} 21. Bb3 {[%emt 0:03:13]} Bd3 {[%emt 0:22:16]} 22. d5 {[%emt 0:02:34]} Nxe5 {[%emt 0:03:22]} 23. Bxe7 {[%emt 0:00:06]} c4 {[%emt 0:00:20]} 24. Bxd8 {[%emt 0:03:19]} Rxd8 {[%emt 0:00:18]} 25. Bc2 {[%emt 0:00:42]} Bh6 {[%emt 0:06:55]} 26. f4 {[%emt 0:01:23]} Ng4 {[%emt 0:00:27]} 27. Qf3 {[%emt 0:00:20]} Qc5+ {[%emt 0:09:35]} 28. Nd4 {[%emt 0:01:36]} Bxf1 {[%emt 0:00:37]} 29. Rxf1 {[%emt 0:00:02]} Rxd5 {[%emt 0:01:26]} (29... Bg7 $142 30. f5 Bxd4+ 31. cxd4 Qxd4+ 32. Kh1 Qxd5) 30. f5 {[%emt 0:03:03]} Ne5 $2 {[%emt 0:02:25]} ({Resist} 30... Be3+ 31. Kh1) (30... Rd7 $19 31. Kh1 Qd6 32. fxg6+ fxg6) 31. fxg6+ {[%emt 0:00:24]} fxg6 {[%emt 0:01:13]} 32. Qxh5 {[%emt 0:01:06]} Qe7 $2 {[%emt 0:00:23]} (32... Kg7 $19 33. Bxg6 Rxd4 34. cxd4 Qxd4+ 35. Kh2 Nxg6) 33. g3 {[%emt 0:03:50]} Kg7 {[%emt 0:00:31]} 34. Qe2 {[%emt 0:01:26]} Qd7 {[%emt 0:00:49]} 35. h5 {[%emt 0:02:42]} Nd3 {[%emt 0:00:35]} 36. hxg6 {[%emt 0:01:13]} Kg8 $2 {[%emt 0:00:30]} (36... Re5 37. Qf3 Kg8) 37. Rf7 $18 {[%emt 0:01:00]} Qc8 {[%emt 0:00:25]} 38. Qe7 {[%emt 0:00:30]} Ne5 {[%emt 0:00:32]} 39. Rf8+ {[%emt 0:00:09]} 1-0

[Event "4th Batumi Cup 2018"]
[Site "Batumi"]
[Date "2018.07.08"]
[Round "7"]
[White "Mammadova, Narmin"]
[Black "Pogosyan, Stefan"]
[Result "0-1"]
[ECO "E14"]
[WhiteElo "2209"]
[BlackElo "2356"]
[Annotator "NA"]
[PlyCount "98"]
[EventDate "2018.07.03"]
[EventType "swiss"]
[EventCountry "GEO"]
[SourceTitle "playchess.com"]
[Source "ChessBase"]
[SourceQuality "1"]
[TimeControl "40/5400+30:1800+30"]

1. d4 {[%emt 0:02:57]} Nf6 {[%emt 0:00:45]} 2. Nf3 {[%emt 0:00:19]} c5 {[%emt 0:00:50]} 3. e3 {[%emt 0:01:55]} e6 {[%emt 0:03:14]} 4. Bd3 {[%emt 0:01:15]} b6 {[%emt 0:00:27]} 5. O-O {[%emt 0:00:57]} Be7 {[%emt 0:00:28]} 6. c4 {[%emt 0:06:18]} Bb7 {[%emt 0:00:39]} 7. Nc3 {[%emt 0:01:18]} cxd4 {[%emt 0:03:49]} 8. exd4 {[%emt 0:00:34]} d6 {[%emt 0:00:08]} 9. Re1 {[%emt 0:03:02]} O-O {[%emt 0:00:14] E14: Queen's Indian: Classical Variation (4 e3)} 10. Qe2 {[%emt 0:04:16]} (10. d5 e5 11. a3 Nbd7 12. b4 Re8 13. Bb2 Bf8 14. Nd2 g6 15. Bc2 a6 16. Ba4 Rc8 17. Qf3 {1-0 (47) Bauer,C (2627)-Haria,R (2445) England 2016}) 10... Nbd7 {[%emt 0:01:47]} 11. Bf4 {[%emt 0:03:17]} Re8 {[%emt 0:02:29]} 12. Rad1 {[%emt 0:05:15]} Bf8 $146 {[%emt 0:00:59]} ({Predecessor:} 12... Nf8 13. c5 Nd5 14. Nxd5 Bxd5 15. Bb5 bxc5 16. Bxe8 Qxe8 17. dxc5 dxc5 18. Rxd5 {1-0 (39) Musiienko,D (1774)-Matorin,E (2226) Kiev 2010}) 13. Bb1 {[%emt 0:04:01]} a6 {[%emt 0:02:02]} 14. Bg5 {[%emt 0:03:36]} Qc7 {[%emt 0:05:50]} 15. Qd3 {[%emt 0:12:11]} Rac8 {[%emt 0:11:22]} 16. Nd2 {[%emt 0:04:16]} g6 {[%emt 0:00:08]} 17. d5 {[%emt 0:07:23]} exd5 {[%emt 0:09:13]} 18. cxd5 {[%emt 0:00:02]} Bg7 {[%emt 0:01:52]} 19. Nf3 {[%emt 0:01:42]} b5 {[%emt 0:00:55]} 20. a3 {[%emt 0:04:22]} Ng4 {[%emt 0:08:48]} 21. Bf4 {[%emt 0:08:03]} (21. Rxe8+ $15 Rxe8 22. Rc1) 21... Qb6 {[%emt 0:09:32]} 22. Rf1 {[%emt 0:05:07]} Nge5 {[%emt 0:00:51]} 23. Nxe5 {[%emt 0:00:36]} Nxe5 {[%emt 0:00:37]} 24. Qg3 {[%emt 0:02:03]} f5 {[%emt 0:09:55]} 25. Be3 {[%emt 0:02:11]} Qc7 {[%emt 0:02:29]} 26. Bd4 {[%emt 0:02:50]} (26. Ba2 $11) 26... Nc4 {[%emt 0:00:23]} 27. Na2 {[%emt 0:01:58]} Bxd4 {[%emt 0:02:13]} ({Worse is} 27... Nxb2 28. Bxb2 Bxb2 29. Bxf5 $11) 28. Rxd4 {[%emt 0:00:07]} Qg7 {[%emt 0:00:03]} 29. Rdd1 {[%emt 0:06:05]} Nxb2 {[%emt 0:04:35]} 30. Rde1 {[%emt 0:00:08]} Nc4 {[%emt 0:00:24]} 31. Qd3 {[%emt 0:02:22]} f4 {[%emt 0:03:05]} 32. Nb4 {[%emt 0:01:38]} Ne5 {[%emt 0:01:04]} 33. Qb3 {[%emt 0:01:21]} Qf7 {[%emt 0:02:52]} 34. Be4 {[%emt 0:01:24]} f3 {[%emt 0:02:52]} 35. gxf3 {[%emt 0:00:22]} a5 {[%emt 0:03:42]} 36. Na2 {[%emt 0:01:20]} Rc5 {[%emt 0:00:23]} 37. Rd1 {[%emt 0:00:47]} a4 {[%emt 0:01:01]} 38. Qe3 {[%emt 0:01:05]} Bxd5 {[%emt 0:03:31]} 39. Rxd5 {[%emt 0:00:01]} Rxd5 {[%emt 0:00:17]} 40. Nb4 {[%emt 0:00:00]} Rc5 {[%emt 0:00:00]} 41. Kh1 {[%emt 0:13:52]} Nc4 {[%emt 0:06:26]} 42. Qd3 {[%emt 0:00:48]} Ree5 $19 {[%emt 0:01:05]} 43. Qd4 {[%emt 0:05:49]} d5 {[%emt 0:06:57]} 44. Qxc5 {[%emt 0:04:00]} dxe4 {[%emt 0:00:07]} 45. Qc8+ {[%emt 0:02:02]} Kg7 {[%emt 0:02:04]} 46. f4 {[%emt 0:04:42]} Qxf4 {[%emt 0:00:15]} 47. Qd7+ {[%emt 0:02:22]} Kh6 {[%emt 0:00:26]} 48. Rg1 {[%emt 0:01:25]} Qf3+ {[%emt 0:00:19]} 49. Rg2 {[%emt 0:00:05]} Rg5 {[%emt 0:00:05]} 0-1

[Event "4th Batumi Cup 2018"]
[Site "Batumi"]
[Date "2018.07.08"]
[Round "7"]
[White "Stepanyan, Eva"]
[Black "Oboladze, Luka"]
[Result "0-1"]
[ECO "B41"]
[WhiteElo "2096"]
[BlackElo "2378"]
[Annotator "NA"]
[PlyCount "132"]
[EventDate "2018.07.03"]
[EventType "swiss"]
[EventCountry "GEO"]
[SourceTitle "playchess.com"]
[Source "ChessBase"]
[SourceQuality "1"]
[TimeControl "40/5400+30:1800+30"]

1. e4 {[%emt 0:00:00]} c5 {[%emt 0:00:00]} 2. Nf3 {[%emt 0:00:00]} e6 {[%emt 0:00:00]} 3. d4 {[%emt 0:00:00]} cxd4 {[%emt 0:00:00]} 4. Nxd4 {[%emt 0:00:00]} a6 {[%emt 0:00:00]} 5. c4 {[%emt 0:00:00]} Nf6 {[%emt 0:00:01]} 6. Nc3 {[%emt 0:00:20]} Bb4 {[%emt 0:00:11]} 7. Qd3 {[%emt 0:00:11] B41: Sizilianisch (Paulsen-Variante)} O-O {[%emt 0:00:11]} (7... Qc7 8. Nc2 Bc5 9. Be2 O-O 10. O-O Nc6 11. Kh1 d6 12. f4 Bd7 13. a3 Rad8 14. b4 Ba7 {½-½ (115) Karjakin,S (2782)-Caruana,F (2816) Paris 2018}) 8. e5 {[%emt 0:00:13]} Ne8 {[%emt 0:00:29]} 9. Be2 {[%emt 0:00:09]} d6 {[%emt 0:01:38]} 10. Nf3 $146 {[%emt 0:00:08]} ({Vorgänger:} 10. Nc2 Bxc3+ 11. Qxc3 dxe5 12. Qxe5 Nc6 13. Qg3 e5 14. O-O Bf5 {0-1 (60) Hilby,C (2334)-Feuerstack,A (2449) chess.com INT 2017}) 10... Nc6 {[%emt 0:09:20]} 11. a3 {[%emt 0:00:51]} Bxc3+ {[%emt 0:05:34]} 12. Qxc3 {[%emt 0:00:27]} f6 {[%emt 0:02:09]} 13. exd6 {[%emt 0:06:38]} Nxd6 {[%emt 0:00:10]} 14. O-O {[%emt 0:00:44]} e5 {[%emt 0:06:32]} 15. Rd1 {[%emt 0:07:08]} Qc7 {[%emt 0:03:42]} 16. c5 {[%emt 0:04:37]} Nf5 {[%emt 0:00:59]} 17. Bc4+ {[%emt 0:02:43]} Kh8 {[%emt 0:00:12]} 18. b4 {[%emt 0:00:24]} Qe7 {[%emt 0:03:27]} 19. Bb2 {[%emt 0:06:43]} Be6 {[%emt 0:02:16]} 20. Qb3 {[%emt 0:07:58]} Bxc4 {[%emt 0:04:43]} 21. Qxc4 {[%emt 0:00:21]} Rad8 {[%emt 0:01:50]} 22. Qe4 {[%emt 0:06:07]} Qe6 {[%emt 0:00:40]} 23. h3 {[%emt 0:03:17]} Qb3 {[%emt 0:05:59]} 24. Rxd8 {[%emt 0:01:56]} Rxd8 {[%emt 0:00:15]} 25. Qxf5 {[%emt 0:07:24]} Qxb2 {[%emt 0:00:40]} 26. Qb1 {[%emt 0:00:58]} Qc3 {[%emt 0:08:49]} 27. Qe1 {[%emt 0:02:15]} Qd3 {[%emt 0:08:06]} 28. Qb1 {[%emt 0:05:06]} e4 {[%emt 0:01:26]} 29. Ne1 {[%emt 0:03:14]} Qc3 {[%emt 0:04:16]} 30. Qc1 {[%emt 0:01:29]} Qxc1 {[%emt 0:02:37]} 31. Rxc1 {[%emt 0:00:53]} Rd2 {[%emt 0:03:05]} 32. Nc2 {[%emt 0:03:24]} Rd3 {[%emt 0:01:11]} 33. Re1 {[%emt 0:01:44]} f5 {[%emt 0:02:53]} 34. Ne3 {[%emt 0:08:46]} g6 {[%emt 0:02:04]} 35. Ra1 {[%emt 0:06:20]} Ne5 {[%emt 0:02:15]} 36. Rd1 {[%emt 0:02:57]} Rxd1+ {[%emt 0:11:57]} 37. Nxd1 {[%emt 0:00:25]} Kg7 {[%emt 0:01:38]} 38. Kf1 {[%emt 0:01:19]} Nc4 {[%emt 0:01:47]} 39. a4 {[%emt 0:00:10]} Kf6 {[%emt 0:00:05]} 40. Nc3 {[%emt 0:00:00]} Ke5 {[%emt 0:00:00]} 41. Ke2 {[%emt 0:11:59]} Kd4 {[%emt 0:01:20]} 42. Nd1 {[%emt 0:03:49]} f4 {[%emt 0:00:55]} 43. h4 {[%emt 0:00:26]} Ne5 {[%emt 0:02:23]} 44. g3 {[%emt 0:02:21]} f3+ {[%emt 0:00:35]} 45. Kd2 {[%emt 0:00:16]} Nc4+ {[%emt 0:02:29]} 46. Ke1 {[%emt 0:00:14]} h5 {[%emt 0:01:02]} 47. Kf1 {[%emt 0:01:40]} Ne5 {[%emt 0:00:57]} 48. Ne3 {[%emt 0:00:41]} Nd3 {[%emt 0:00:55]} 49. g4 {[%emt 0:01:45]} hxg4 {[%emt 0:00:06]} 50. Nxg4 {[%emt 0:00:08]} Nxb4 {[%emt 0:00:07]} 51. Nf6 {[%emt 0:00:33]} Nd3 {[%emt 0:00:15]} 52. Nd7 {[%emt 0:00:36]} Ne5 {[%emt 0:01:10]} 53. Nf6 {[%emt 0:00:47]} Kxc5 {[%emt 0:00:21]} 54. Nxe4+ {[%emt 0:00:07]} Kb4 {[%emt 0:00:03]} 55. Nd6 $19 {[%emt 0:00:37]} Kxa4 {[%emt 0:00:11]} 56. Nxb7 {[%emt 0:00:05]} Kb4 {[%emt 0:00:04]} 57. Ke1 {[%emt 0:03:00]} a5 {[%emt 0:00:18]} 58. Nxa5 {[%emt 0:00:41]} Kxa5 {[%emt 0:00:06]} 59. Kd2 {[%emt 0:00:03]} Kb5 {[%emt 0:00:18]} 60. Ke3 {[%emt 0:00:08]} Kc5 {[%emt 0:00:11]} 61. Ke4 {[%emt 0:00:11]} Kd6 {[%emt 0:00:05]} 62. Kd4 {[%emt 0:00:14]} Ke6 {[%emt 0:01:00]} 63. Ke4 {[%emt 0:00:02]} Kf6 {[%emt 0:00:28]} 64. Kf4 {[%emt 0:00:04]} Nd3+ {[%emt 0:00:43]} 65. Kxf3 {[%emt 0:00:06]} Kf5 {[%emt 0:00:04]} 66. Kg3 {[%emt 0:01:04]} Nf4 {[%emt 0:00:06]} 0-1

[Event "4th Batumi Cup 2018"]
[Site "Batumi"]
[Date "2018.07.08"]
[Round "7"]
[White "Al Hosani, Omran"]
[Black "Tereladze, Sopiko"]
[Result "1-0"]
[ECO "E05"]
[WhiteElo "2089"]
[BlackElo "2169"]
[Annotator "NA"]
[PlyCount "69"]
[EventDate "2018.07.03"]
[EventType "swiss"]
[EventCountry "GEO"]
[SourceTitle "playchess.com"]
[Source "ChessBase"]
[SourceQuality "1"]
[TimeControl "40/5400+30:1800+30"]

1. Nf3 {[%emt 0:00:00]} Nf6 {[%emt 0:05:30]} 2. g3 {[%emt 0:00:00]} d5 {[%emt 0:00:07]} 3. Bg2 {[%emt 0:00:00]} e6 {[%emt 0:00:13]} 4. O-O {[%emt 0:00:02]} Be7 {[%emt 0:00:11]} 5. c4 {[%emt 0:00:08]} O-O {[%emt 0:00:11]} 6. d4 {[%emt 0:00:07]} dxc4 {[%emt 0:03:27]} 7. Ne5 {[%emt 0:03:52]} c5 {[%emt 0:12:13]} 8. dxc5 {[%emt 0:01:36]} Bxc5 {[%emt 0:01:04]} 9. Qc2 {[%emt 0:00:53]} Nbd7 {[%emt 0:02:04]} 10. Nxc4 {[%emt 0:02:34]} Qe7 {[%emt 0:03:25]} 11. Nc3 {[%emt 0:00:46]} Nb6 {[%emt 0:04:16]} 12. Ne5 {[%emt 0:00:34]} Bd6 {[%emt 0:02:21]} 13. Nf3 $11 {[%emt 0:03:36]} Bd7 {[%emt 0:04:10]} 14. Rd1 {[%emt 0:02:21]} h6 {[%emt 0:02:47]} 15. e4 {[%emt 0:02:47]} e5 {[%emt 0:02:08]} 16. Nh4 {[%emt 0:02:05]} Rac8 {[%emt 0:02:02]} 17. Qe2 {[%emt 0:02:37]} Bc5 {[%emt 0:01:43]} 18. Nf5 {[%emt 0:01:37]} Bxf5 {[%emt 0:00:04]} 19. exf5 {[%emt 0:00:05]} Rfe8 {[%emt 0:02:55]} 20. g4 {[%emt 0:02:07]} e4 {[%emt 0:07:29]} 21. g5 {[%emt 0:01:01]} hxg5 {[%emt 0:00:27]} 22. Bxg5 {[%emt 0:00:11]} Qe5 {[%emt 0:00:38]} 23. Bxf6 {[%emt 0:02:07]} Qxf6 {[%emt 0:01:07]} 24. Qg4 {[%emt 0:03:35]} Re5 {[%emt 0:07:52]} 25. Nxe4 {[%emt 0:00:58]} Qxf5 {[%emt 0:01:32]} 26. Qxf5 {[%emt 0:00:28]} Rxf5 {[%emt 0:00:04]} 27. Bh3 {[%emt 0:00:06]} Re5 {[%emt 0:02:00]} 28. Bxc8 {[%emt 0:02:10]} Rxe4 {[%emt 0:00:04]} 29. Rd8+ {[%emt 0:00:45]} Bf8 {[%emt 0:00:01]} 30. Bxb7 {[%emt 0:00:12]} Re2 {[%emt 0:00:57]} 31. b3 {[%emt 0:00:21]} g6 {[%emt 0:00:13]} 32. a4 {[%emt 0:00:06]} Kg7 {[%emt 0:01:07]} 33. a5 {[%emt 0:00:08]} Bc5 {[%emt 0:00:19] axb6Bxb6 [%clk 0:32:18]} 34. Rd7 {[%emt 0:00:00]} Rxf2 {[%emt 0:00:00]} 35. Kh1 {[%emt 0:00:03]} 1-0

[Event "4th Batumi Cup 2018"]
[Site "Batumi"]
[Date "2018.07.09"]
[Round "8"]
[White "Pourramezanali, Amirreza"]
[Black "Duzhakov, Ilya"]
[Result "1-0"]
[ECO "A46"]
[WhiteElo "2537"]
[BlackElo "2448"]
[Annotator "ChessBase"]
[PlyCount "51"]
[EventDate "2018.07.03"]
[EventType "swiss"]
[EventCountry "GEO"]
[SourceTitle "playchess.com"]
[Source "ChessBase"]
[SourceQuality "1"]
[TimeControl "40/5400+30:1800+30"]

1. d4 {[%emt 0:06:39]} Nf6 {[%emt 0:00:10]} 2. Nf3 {[%emt 0:00:12]} e6 {[%emt 0:00:08]} 3. e3 {[%emt 0:00:38]} c5 {[%emt 0:05:07]} 4. Bd3 {[%emt 0:00:53]} b6 {[%emt 0:06:14]} 5. e4 {[%emt 0:03:59]} d5 {[%emt 0:04:23]} 6. e5 {[%emt 0:00:19]} Nfd7 {[%emt 0:00:20]} 7. c3 {[%emt 0:09:22]} Ba6 {[%emt 0:00:58]} 8. Bxa6 {[%emt 0:02:35]} Nxa6 {[%emt 0:00:02]} 9. Bg5 {[%emt 0:00:33]} Be7 {[%emt 0:05:27]} 10. Bxe7 {[%emt 0:00:48]} Qxe7 {[%emt 0:00:11]} 11. O-O {[%emt 0:00:50]} O-O {[%emt 0:00:23]} 12. Na3 {[%emt 0:00:05]} Nab8 {[%emt 0:02:34]} 13. c4 {[%emt 0:15:11]} dxc4 {[%emt 0:07:14]} 14. d5 {[%emt 0:00:19]} a6 {[%emt 0:00:40]} 15. Nxc4 {[%emt 0:01:45]} b5 {[%emt 0:05:57]} 16. Ne3 {[%emt 0:01:46]} exd5 {[%emt 0:05:56]} 17. Qxd5 {[%emt 0:03:35]} Nb6 {[%emt 0:02:46]} 18. Qe4 {[%emt 0:00:14]} Ra7 {[%emt 0:09:16]} 19. Rad1 {[%emt 0:03:57]} Re8 {[%emt 0:10:35]} 20. Nf5 {[%emt 0:03:27]} Qe6 {[%emt 0:11:42]} 21. Rd6 {[%emt 0:03:14]} Qc4 {[%emt 0:00:59]} 22. Qe3 {[%emt 0:00:10]} N6d7 {[%emt 0:05:10]} 23. Qg5 {[%emt 0:01:07]} g6 {[%emt 0:00:02]} 24. Nh6+ {[%emt 0:01:33]} Kf8 {[%emt 0:03:18]} 25. Ng4 {[%emt 0:07:33]} Re6 {[%emt 0:01:21]} 26. b3 {[%emt 0:00:16]} 1-0

[Event "4th Batumi Cup 2018"]
[Site "Batumi"]
[Date "2018.07.09"]
[Round "8"]
[White "Quparadze, Giga"]
[Black "Jumabayev, Rinat"]
[Result "1/2-1/2"]
[ECO "B20"]
[WhiteElo "2503"]
[BlackElo "2594"]
[Annotator "ChessBase"]
[PlyCount "88"]
[EventDate "2018.07.03"]
[EventType "swiss"]
[EventCountry "GEO"]
[SourceTitle "playchess.com"]
[Source "ChessBase"]
[SourceQuality "1"]
[TimeControl "40/5400+30:1800+30"]

1. e4 {[%emt 0:00:00]} c5 {[%emt 0:09:50]} 2. Ne2 {[%emt 0:00:00]} d6 {[%emt 0:00:33]} 3. g3 {[%emt 0:00:00]} d5 {[%emt 0:00:14]} 4. Bg2 {[%emt 0:00:00]} dxe4 {[%emt 0:00:29]} 5. Nbc3 {[%emt 0:00:00]} Nf6 {[%emt 0:02:01]} 6. Nxe4 {[%emt 0:00:07]} Nxe4 {[%emt 0:00:31]} 7. Bxe4 {[%emt 0:00:07]} Nc6 {[%emt 0:00:03]} 8. O-O {[%emt 0:00:19]} Qb6 {[%emt 0:01:59]} 9. Nc3 {[%emt 0:01:55]} e6 {[%emt 0:04:00]} 10. b3 {[%emt 0:00:22]} Be7 {[%emt 0:00:37]} 11. Bb2 {[%emt 0:00:13]} O-O {[%emt 0:01:52]} 12. Qh5 {[%emt 0:08:19]} f5 {[%emt 0:00:27]} 13. Bg2 {[%emt 0:00:08]} Bd7 {[%emt 0:03:56]} 14. Rfe1 {[%emt 0:00:27]} Be8 {[%emt 0:03:10]} 15. Qe2 {[%emt 0:02:02]} Nd4 {[%emt 0:06:54]} 16. Qd3 {[%emt 0:00:30]} Bf6 {[%emt 0:01:21]} 17. Rab1 {[%emt 0:01:56]} Rd8 {[%emt 0:05:32]} 18. Ne2 {[%emt 0:06:05]} Bb5 {[%emt 0:19:13]} 19. c4 {[%emt 0:00:06]} Bc6 {[%emt 0:00:06]} 20. Nxd4 {[%emt 0:00:05]} Bxd4 {[%emt 0:00:58]} 21. Qe2 {[%emt 0:00:06]} Bxg2 {[%emt 0:00:45]} 22. Kxg2 {[%emt 0:00:05]} Qc6+ {[%emt 0:06:11]} 23. Qf3 {[%emt 0:04:15]} Qxf3+ {[%emt 0:00:12]} 24. Kxf3 {[%emt 0:00:05]} Kf7 {[%emt 0:00:03]} 25. b4 {[%emt 0:02:45]} cxb4 {[%emt 0:03:42]} 26. a3 {[%emt 0:00:06]} Bxb2 {[%emt 0:10:48]} 27. Rxb2 {[%emt 0:01:29]} Rd3+ {[%emt 0:01:49]} 28. Re3 {[%emt 0:00:10]} Rfd8 {[%emt 0:00:16]} 29. Ke2 {[%emt 0:00:24]} R3d4 {[%emt 0:01:17]} 30. c5 {[%emt 0:00:47]} a5 {[%emt 0:03:10]} 31. Reb3 {[%emt 0:00:07]} Re4+ {[%emt 0:01:25]} 32. Kd1 {[%emt 0:00:08]} Rdd4 {[%emt 0:03:31]} 33. f3 {[%emt 0:00:48]} Re5 {[%emt 0:00:13]} 34. axb4 {[%emt 0:00:07]} axb4 {[%emt 0:00:04]} 35. Rxb4 {[%emt 0:00:04]} Rxb4 {[%emt 0:00:26]} 36. Rxb4 {[%emt 0:00:07]} Rxc5 {[%emt 0:00:02]} 37. Rxb7+ {[%emt 0:00:07]} Kf6 {[%emt 0:00:01]} 38. f4 {[%emt 0:00:39]} Ra5 {[%emt 0:00:35]} 39. Ke2 {[%emt 0:00:20]} Ra3 {[%emt 0:00:18]} 40. Kf2 {[%emt 0:00:00]} h6 {[%emt 0:00:00]} 41. Rd7 {[%emt 0:01:10]} g5 {[%emt 0:00:47]} 42. Rh7 {[%emt 0:00:14]} Kg6 {[%emt 0:00:03]} 43. Re7 {[%emt 0:00:08]} Ra6 {[%emt 0:00:03]} 44. Rd7 {[%emt 0:00:06]} Kf6 {[%emt 0:02:22]} 1/2-1/2

[Event "4th Batumi Cup 2018"]
[Site "Batumi"]
[Date "2018.07.09"]
[Round "8"]
[White "Sindarov, Javokhir"]
[Black "Maghalashvili, Davit"]
[Result "1/2-1/2"]
[ECO "B88"]
[WhiteElo "2474"]
[BlackElo "2508"]
[Annotator "ChessBase"]
[PlyCount "41"]
[EventDate "2018.07.03"]
[EventType "swiss"]
[EventCountry "GEO"]
[SourceTitle "playchess.com"]
[Source "ChessBase"]
[SourceQuality "1"]
[TimeControl "40/5400+30:1800+30"]

1. e4 {[%emt 0:00:00]} c5 {[%emt 0:00:00]} 2. Nc3 {[%emt 0:00:00]} Nc6 {[%emt 0:00:00]} 3. Nf3 {[%emt 0:00:00]} d6 {[%emt 0:00:08]} 4. d4 {[%emt 0:00:00]} cxd4 {[%emt 0:00:07]} 5. Nxd4 {[%emt 0:00:00]} Nf6 {[%emt 0:00:17]} 6. Bc4 {[%emt 0:00:43]} e6 {[%emt 0:00:34]} 7. Be3 {[%emt 0:00:55]} a6 {[%emt 0:00:33]} 8. a3 {[%emt 0:00:08]} Be7 {[%emt 0:00:43]} 9. O-O {[%emt 0:01:21]} O-O {[%emt 0:00:22]} 10. Ba2 {[%emt 0:01:18]} Nxd4 {[%emt 0:01:50]} 11. Bxd4 {[%emt 0:00:08]} b5 {[%emt 0:00:20]} 12. f4 {[%emt 0:05:16]} Bb7 {[%emt 0:01:04]} 13. Qd3 {[%emt 0:00:24]} Bc6 {[%emt 0:15:11]} 14. f5 {[%emt 0:11:49]} e5 {[%emt 0:02:48]} 15. Bf2 {[%emt 0:00:11]} Rc8 {[%emt 0:03:03]} 16. Bh4 {[%emt 0:07:24]} Ng4 {[%emt 0:10:06]} 17. Qe2 {[%emt 0:13:47]} Bxh4 {[%emt 0:17:20]} 18. Qxg4 {[%emt 0:00:04]} a5 {[%emt 0:00:08]} 19. Qe2 {[%emt 0:15:30]} Qc7 {[%emt 0:03:51]} 20. g3 {[%emt 0:01:28]} Bd8 {[%emt 0:03:18]} 21. Kg2 {[%emt 0:15:45]} 1/2-1/2